bitfinex-derivatives/quotes_BTCF0:USTF0_20210108
["timestamp","ask_amount","ask_price","bid_price","bid_amount"]
[1610147314346,0.13632608,40452.0,40449.0,3.2858]
[1610147314546,0.11464,40475.0,40449.0,3.2858]
[1610147314746,0.11464,40475.0,40450.0,0.04981616]
[1610147314946,0.287,40483.0,40450.0,0.04981616]
[1610147315144,0.287,40483.0,40459.0,3.2685]
[1610147315344,0.287,40483.0,40459.0,3.39551]
[1610147315645,0.51407034,40497.0,40459.0,3.39551]
[1610147315646,0.01442978,40497.0,40460.0,0.04979677]
[1610147315846,0.44324104,40505.0,40460.0,0.04979677]
[1610147316045,0.13632608,40491.0,40481.0,0.13632608]
[1610147316445,0.13632608,40491.0,40482.0,3.0031]
[1610147316646,0.13632608,40491.0,40482.0,3.01807278]
[1610147316846,0.13632608,40491.0,40483.0,0.01497034]
[1610147318145,0.13632608,40486.0,40483.0,0.01497034]
[1610147319846,0.13632608,40486.0,40483.0,0.00022973]
[1610147320049,0.13632608,40486.0,40484.0,0.00022969]
[1610147320747,0.13632608,40486.0,40483.0,0.00022969]
[1610147320948,0.13632608,40486.0,40485.0,0.00022969]
[1610147321150,0.13632608,40486.0,40484.0,0.00022969]
[1610147321351,0.13632608,40486.0,40485.0,0.00022969]
[1610147321748,0.2852,40506.0,40485.0,0.00022969]
[1610147321949,0.2852,40506.0,40483.0,0.00022969]
[1610147322153,0.2852,40506.0,40486.0,0.00022969]
[1610147322154,0.13632608,40492.0,40486.0,0.00022969]
[1610147322551,0.13632608,40492.0,40484.0,0.13655577]
[1610147322848,0.13632608,40492.0,40487.0,0.00022967]
[1610147323050,0.13632608,40492.0,40485.0,0.00022967]
[1610147323250,0.13632608,40492.0,40488.0,0.00022967]
[1610147323449,0.13632608,40492.0,40486.0,0.00022967]
[1610147323855,0.13632608,40492.0,40489.0,0.00022967]
[1610147324051,0.13632608,40492.0,40487.0,0.00022967]
[1610147324258,0.13632608,40492.0,40490.0,0.00022967]
[1610147324651,0.13632608,40492.0,40488.0,0.00022967]
[1610147324853,0.13632608,40492.0,40484.0,0.13632608]
[1610147325063,0.13632608,40492.0,40489.0,0.00022966]
[1610147325254,0.13632608,40492.0,40485.0,0.00022966]
[1610147326259,0.2852,40506.0,40489.0,0.13632608]
[1610147326461,0.2852,40506.0,40490.0,0.5434]
[1610147326756,0.2852,40506.0,40490.0,0.54362966]
[1610147326957,0.2852,40506.0,40490.0,0.5434]
[1610147327155,0.2852,40506.0,40491.0,0.00022965]
[1610147327356,0.2852,40506.0,40491.0,0.10881965]
[1610147327756,0.2852,40506.0,40493.0,3.3483]
[1610147328155,0.13632608,40494.0,40493.0,3.3483]
[1610147328658,0.13632608,40494.0,40491.0,0.10859]
[1610147332462,0.13632608,40494.0,40486.0,3.1553]
[1610147334266,0.13632608,40494.0,40487.0,0.00022967]
[1610147334966,0.13632608,40494.0,40486.0,3.29162608]
[1610147335366,0.13632608,40494.0,40487.0,0.00022966]
[1610147336268,0.13632608,40494.0,40492.0,0.13632608]
[1610147336468,0.13632608,40494.0,40492.0,0.25340608]
[1610147336869,0.13632608,40494.0,40492.0,0.11708]
[1610147339574,0.13632608,40494.0,40486.0,3.1553]
[1610147340172,0.12501,40503.0,40487.0,0.00022969]
[1610147342178,0.13632608,40488.0,40487.0,0.00022969]
[1610147344281,0.13632608,40488.0,40487.0,0.13655577]
[1610147345081,0.13632608,40488.0,40487.0,0.18608083]
[1610147348786,0.50872991,40488.0,40487.0,0.18608083]
[1610147351291,0.50872991,40488.0,40487.0,0.04975475]
[1610147351792,0.50872991,40488.0,40483.0,0.01496597]
[1610147352091,0.50872991,40488.0,40487.0,0.01496812]
[1610147352292,0.50872991,40488.0,40484.0,0.01496968]
[1610147352495,0.50872991,40488.0,40487.0,0.01496991]
[1610147352693,0.50872991,40488.0,40485.0,0.01497079]
[1610147352994,0.50872991,40488.0,40483.0,0.01497082]
[1610147353294,0.50872991,40488.0,40486.0,0.0149706]
[1610147353494,0.50872991,40488.0,40484.0,0.01497162]
[1610147353796,0.50872991,40488.0,40478.0,0.01497193]
[1610147354195,0.50872991,40488.0,40485.0,0.01497245]
[1610147354397,0.50872991,40488.0,40479.0,0.01497287]
[1610147354596,0.50872991,40488.0,40486.0,0.00022975]
[1610147354999,0.50872991,40488.0,40477.0,3.6304]
[1610147355000,0.50872991,40488.0,40480.0,0.01497355]
[1610147355198,0.50872991,40488.0,40487.0,0.00022977]
[1610147355399,0.50872991,40488.0,40481.0,0.01497362]
[1610147355599,0.50872991,40488.0,40487.0,0.00022977]
[1610147356001,0.50872991,40488.0,40478.0,0.01497286]
[1610147356202,0.37240383,40488.0,40487.0,0.00022977]
[1610147356401,0.37240383,40488.0,40479.0,0.01497383]
[1610147356702,0.37240383,40488.0,40478.0,0.01497633]
[1610147357001,0.37240383,40488.0,40480.0,0.01497642]
[1610147357203,0.37240383,40488.0,40477.0,3.6304]
[1610147357204,0.37240383,40488.0,40479.0,0.01497592]
[1610147357605,0.37240383,40488.0,40481.0,0.01497596]
[1610147357803,0.37240383,40488.0,40480.0,0.01497607]
[1610147358004,0.37240383,40488.0,40482.0,0.01497579]
[1610147358205,0.13632608,40483.0,40482.0,0.01497579]
[1610147358406,0.13632608,40483.0,40481.0,0.01497579]
[1610147358606,0.13632608,40483.0,40482.0,0.00022979]
[1610147359207,0.13632608,40483.0,40478.0,0.01497624]
[1610147359409,0.13632608,40483.0,40482.0,0.00022979]
[1610147359606,0.13632608,40483.0,40479.0,0.00022979]
[1610147360007,0.13632608,40483.0,40482.0,0.00022979]
[1610147360208,0.13632608,40483.0,40480.0,0.00022979]
[1610147360407,0.13632608,40483.0,40482.0,0.00022979]
[1610147360707,0.13632608,40483.0,40477.0,3.6304]
[1610147360708,0.13632608,40483.0,40481.0,0.00022979]
[1610147360907,0.13632608,40483.0,40482.0,0.00022979]
[1610147361408,0.13632608,40483.0,40478.0,0.0149753]
[1610147362608,0.13632608,40483.0,40474.0,0.01497415]
[1610147362810,0.13632608,40483.0,40468.0,4.1281]
[1610147362811,0.13632608,40483.0,40479.0,0.00022979]
[1610147363008,0.13632608,40483.0,40475.0,0.00022979]
[1610147363409,0.13632608,40483.0,40480.0,0.00022982]
[1610147363611,0.13632608,40483.0,40476.0,0.00022982]
[1610147363809,0.13632608,40483.0,40481.0,0.00022982]
[1610147364312,0.13632608,40478.0,40468.0,4.1281]
[1610147364613,0.13632608,40478.0,40469.0,0.00022986]
[1610147365612,0.13632608,40478.0,40446.0,0.13632608]
[1610147365613,0.13632608,40478.0,40458.0,3.3249]
[1610147365913,0.13632608,40478.0,40459.0,0.0002299]
[1610147366313,0.13632608,40460.0,40459.0,0.0002299]
[1610147366513,0.13632608,40460.0,40445.0,3.75598844]
[1610147366714,0.13632608,40460.0,40459.0,0.0002299]
[1610147367013,0.13632608,40460.0,40446.0,0.01498963]
[1610147367213,0.13632608,40460.0,40459.0,0.00022992]
[1610147367714,0.13632608,40460.0,40450.0,3.5855]
[1610147367915,0.13632608,40460.0,40459.0,0.00022992]
[1610147368121,0.13632608,40460.0,40451.0,0.00022937]
[1610147368415,0.07777,40467.0,40459.0,0.00022937]
[1610147368614,0.07777,40467.0,40452.0,0.00022937]
[1610147368815,0.07777,40467.0,40460.0,0.00022937]
[1610147369217,0.07777,40467.0,40453.0,0.00022937]
[1610147369418,0.07777,40467.0,40461.0,0.00022937]
[1610147369617,0.08147,40476.0,40454.0,0.00022935]
[1610147369818,0.08147,40476.0,40459.0,3.2165]
[1610147370017,0.08147,40476.0,40462.0,0.00022935]
[1610147370218,0.08147,40476.0,40460.0,0.00022935]
[1610147370421,0.13632608,40461.0,40459.0,3.2165]
[1610147371019,0.13632608,40461.0,40460.0,0.00022933]
[1610147375423,0.13632608,40461.0,40459.0,3.2165]
[1610147375727,0.13632608,40461.0,40460.0,0.00022914]
[1610147375923,0.13632608,40461.0,40460.0,0.00045829]
[1610147376325,0.11533,40485.0,40460.0,0.00045829]
[1610147376526,3.95520383,40488.0,40460.0,0.00045829]
[1610147376726,0.37240383,40488.0,40461.0,0.00022911]
[1610147377126,0.37240383,40488.0,40472.0,4.0806]
[1610147377527,0.37240383,40488.0,40473.0,0.00022909]
[1610147378330,0.13632608,40476.0,40474.0,0.13632608]
[1610147379033,0.13632608,40476.0,40475.0,0.00022907]
[1610147379960,0.13632608,40476.0,40473.0,0.00022909]
[1610147380140,0.13632608,40476.0,40464.0,3.0199]
[1610147380141,0.13632608,40476.0,40475.0,0.00022912]
[1610147380742,0.13632608,40476.0,40466.0,3.3844]
[1610147380937,0.13632608,40476.0,40475.0,0.00022915]
[1610147381134,0.13632608,40476.0,40467.0,0.00022915]
[1610147381438,0.13632608,40476.0,40466.0,3.3844]
[1610147381636,0.13632608,40476.0,40468.0,0.00022917]
[1610147381836,0.13632608,40476.0,40467.0,0.00022917]
[1610147382235,0.13632608,40476.0,40469.0,0.00022917]
[1610147382437,0.13632608,40470.0,40468.0,0.00022917]
[1610147382636,0.13632608,40470.0,40466.0,3.3844]
[1610147383036,0.13632608,40470.0,40469.0,0.00022915]
[1610147383238,0.13632608,40470.0,40467.0,0.00022914]
[1610147383440,0.13632608,40470.0,40469.0,0.00022914]
[1610147383846,0.13632608,40470.0,40466.0,3.3844]
[1610147384040,0.13632608,40470.0,40467.0,0.01452998]
[1610147384241,0.13632608,40470.0,40467.0,0.01475909]
[1610147384942,0.13632608,40470.0,40469.0,3.9169]
[1610147385345,0.13632608,40470.0,40469.0,3.93165681]
[1610147387645,0.13632608,40470.0,40469.0,3.9314277]
[1610147388045,0.13632608,40470.0,40469.0,3.93165677]
[1610147388547,0.13632608,40470.0,40469.0,4.06798285]
[1610147390147,3.41512608,40470.0,40469.0,0.01475677]
[1610147390649,3.41512608,40470.0,40463.0,0.01475874]
[1610147390850,0.13632608,40470.0,40469.0,0.00022915]
[1610147391052,0.13632608,40470.0,40444.0,0.1214]
[1610147391053,2.93362608,40470.0,40464.0,0.00022919]
[1610147391452,2.93362608,40470.0,40469.0,0.00022921]
[1610147391649,2.93362608,40470.0,40465.0,0.00022924]
[1610147391850,2.93362608,40470.0,40445.0,0.01453958]
[1610147392250,2.93362608,40470.0,40466.0,0.00022926]
[1610147392450,0.13632608,40446.0,40445.0,0.00022926]
[1610147392651,0.13632608,40446.0,40444.0,0.1214]
[1610147392950,0.13632608,40446.0,40445.0,0.00022927]
[1610147393353,3.25792608,40446.0,40445.0,0.00022927]
[1610147393554,3.25792608,40446.0,40436.0,0.01477495]
[1610147393750,3.25792608,40446.0,40445.0,0.00022927]
[1610147393951,3.25792608,40446.0,40437.0,0.00022927]
[1610147394351,3.25792608,40446.0,40445.0,0.00022927]
[1610147394553,3.25792608,40446.0,40438.0,0.00022927]
[1610147394753,0.13632608,40446.0,40445.0,0.00022927]
[1610147395153,0.13632608,40446.0,40439.0,0.00022927]
[1610147395354,3.7649,40463.0,40445.0,0.00022927]
[1610147395554,3.7649,40463.0,40437.0,0.01454557]
[1610147395555,3.7649,40463.0,40444.0,0.12179]
[1610147395854,3.7649,40463.0,40446.0,0.00022924]
[1610147396055,3.7649,40463.0,40445.0,0.00022922]
[1610147396355,3.7649,40463.0,40447.0,0.00022922]
[1610147396553,0.13632608,40452.0,40446.0,0.00022922]
[1610147396954,0.13632608,40452.0,40445.0,0.00022922]
[1610147397154,0.13632608,40452.0,40447.0,0.00022922]
[1610147397355,0.13632608,40452.0,40446.0,0.00022922]
[1610147397654,0.13632608,40452.0,40445.0,0.00022922]
[1610147398055,0.13632608,40452.0,40447.0,0.00022922]
[1610147398254,0.13632608,40452.0,40446.0,0.00022922]
[1610147398456,0.12785,40467.0,40448.0,0.00022922]
[1610147398759,4.1448,40449.0,40447.0,0.00022922]
[1610147398956,4.1448,40449.0,40444.0,0.12179]
[1610147399358,4.1448,40449.0,40448.0,0.00022923]
[1610147399557,4.1448,40449.0,40444.0,0.12179]
[1610147399558,4.1448,40449.0,40445.0,0.00022923]
[1610147399758,4.1448,40449.0,40448.0,0.00022926]
[1610147399960,4.1448,40449.0,40446.0,0.00022926]
[1610147400363,4.1448,40449.0,40445.0,0.00022926]
[1610147400561,0.13632608,40446.0,40430.0,0.13632608]
[1610147400963,0.13632608,40446.0,40398.0,2.54103115]
[1610147401162,0.13632608,40446.0,40431.0,0.00022928]
[1610147401364,0.13632608,40446.0,40425.0,0.08161]
[1610147401564,0.13632608,40446.0,40432.0,0.00022935]
[1610147402064,0.13632608,40446.0,40425.0,0.08161]
[1610147402264,2.9763,40433.0,40425.0,0.08161]
[1610147402464,2.9763,40433.0,40426.0,0.00022939]
[1610147403163,2.9763,40433.0,40416.0,0.0782]
[1610147403765,2.9763,40433.0,40417.0,0.00022941]
[1610147403966,2.9763,40433.0,40416.0,0.0782]
[1610147404264,2.9763,40433.0,40418.0,0.00022941]
[1610147404464,2.9763,40433.0,40417.0,0.00022941]
[1610147404665,0.13632608,40419.0,40417.0,0.00022941]
[1610147404866,0.13632608,40419.0,40416.0,0.0782]
[1610147405066,0.13632608,40419.0,40418.0,0.00022941]
[1610147405267,0.13632608,40419.0,40417.0,0.00022941]
[1610147405668,0.13632608,40419.0,40418.0,0.00022939]
[1610147406069,0.13632608,40419.0,40417.0,0.00022939]
[1610147406473,0.13632608,40419.0,40418.0,0.00022939]
[1610147406872,0.13632608,40419.0,40417.0,0.00022939]
[1610147407073,0.13632608,40419.0,40418.0,0.00022939]
[1610147407373,0.13632608,40419.0,40417.0,0.00022939]
[1610147407672,3.8686,40424.0,40418.0,0.00022939]
[1610147408074,0.2955,40445.0,40418.0,0.00022939]
[1610147408278,0.2955,40445.0,40417.0,0.00022939]
[1610147408577,0.2955,40445.0,40416.0,0.0782]
[1610147408578,0.2955,40445.0,40422.0,0.13632608]
[1610147408979,0.2955,40445.0,40423.0,0.00022937]
[1610147410477,0.2955,40445.0,40427.0,3.4802]
[1610147410675,0.2955,40445.0,40427.0,3.57996]
[1610147410877,0.2955,40445.0,40428.0,0.00022932]
[1610147412076,0.12524,40458.0,40428.0,0.00022932]
[1610147412276,0.12785,40467.0,40428.0,0.00022932]
[1610147412476,10.25,41800.0,40428.0,0.00022932]
[1610147412477,0.2719,40466.0,40428.0,0.00022932]
[1610147412677,0.13632608,40463.0,40453.0,0.13632608]
[1610147413077,0.13632608,40463.0,40453.0,0.68132608]
[1610147413279,0.13632608,40463.0,40453.0,0.13632608]
[1610147413781,0.13632608,40463.0,40457.0,3.03784]
[1610147414279,0.07715,40479.0,40457.0,3.03784]
[1610147414478,0.2764,40488.0,40458.0,0.00022915]
[1610147414778,0.13632608,40473.0,40462.0,0.13632608]
[1610147415279,0.13632608,40473.0,40463.0,0.00022913]
[1610147416580,0.13632608,40473.0,40467.0,0.13632608]
[1610147416981,0.13632608,40473.0,40467.0,0.22349608]
[1610147417181,0.13632608,40473.0,40468.0,0.00022911]
[1610147417882,0.13632608,40473.0,40457.0,2.91002889]
[1610147418082,0.13632608,40473.0,40468.0,0.09344]
[1610147418484,0.13632608,40473.0,40469.0,0.0002291]
[1610147420285,0.13632608,40473.0,40468.0,0.09344]
[1610147420890,0.13632608,40473.0,40457.0,0.11634]
[1610147421090,0.13632608,40473.0,40447.0,3.2838]
[1610147421289,0.13632608,40473.0,40458.0,0.00022916]
[1610147421789,0.13632608,40473.0,40448.0,0.00022916]
[1610147421991,0.13632608,40473.0,40447.0,3.2838]
[1610147422291,0.13632608,40473.0,40449.0,0.00022918]
[1610147422490,0.13632608,40473.0,40448.0,0.0002292]
[1610147422690,0.13632608,40449.0,40447.0,3.2838]
[1610147422889,0.13632608,40449.0,40439.0,0.11707]
[1610147423591,0.13632608,40449.0,40440.0,0.00022923]
[1610147424793,0.13632608,40441.0,40440.0,0.00022923]
[1610147425294,0.13632608,40441.0,40433.0,0.00022925]
[1610147425495,0.13632608,40441.0,40432.0,3.924]
[1610147425496,0.13632608,40441.0,40440.0,0.00022925]
[1610147425895,0.13632608,40441.0,40433.0,0.00022925]
[1610147426095,0.13632608,40441.0,40440.0,0.00022925]
[1610147426296,0.13632608,40441.0,40434.0,0.00022928]
[1610147426495,0.13632608,40441.0,40440.0,0.5231]
[1610147426895,0.13632608,40441.0,40440.0,0.52332926]
[1610147427295,3.1254,40463.0,40440.0,0.52332926]
[1610147427695,0.48326578,40473.0,40441.0,3.4277]
[1610147427995,0.48326578,40473.0,40441.0,3.42792923]
[1610147428196,0.48326578,40473.0,40442.0,0.00022922]
[1610147428696,0.13632608,40447.0,40443.0,0.13632608]
[1610147429299,0.13632608,40447.0,40444.0,0.0002279]
[1610147429700,0.07795,40460.0,40444.0,0.0002279]
[1610147430100,0.2958,40475.0,40452.0,3.3653]
[1610147430499,0.2958,40475.0,40453.0,0.00022785]
[1610147430698,0.13632608,40462.0,40453.0,0.13655393]
[1610147431199,0.13632608,40462.0,40454.0,0.00022785]
[1610147433200,0.2885,40489.0,40454.0,0.00022785]
[1610147434704,0.13632608,40463.0,40454.0,0.00022785]
[1610147436607,0.13632608,40463.0,40453.0,0.00022777]
[1610147436807,0.13632608,40455.0,40452.0,3.44784]
[1610147437208,0.13632608,40455.0,40453.0,0.00022777]
[1610147438409,3.7877,40477.0,40453.0,0.00022777]
[1610147438909,0.13632608,40466.0,40459.0,0.4585]
[1610147439309,0.13632608,40466.0,40460.0,0.00022775]
[1610147440610,0.13632608,40466.0,40453.0,0.00022775]
[1610147440812,0.13632608,40454.0,40452.0,0.08254]
[1610147441211,0.13632608,40454.0,40448.0,3.8731]
[1610147441412,0.13632608,40454.0,40453.0,0.01434943]
[1610147441610,0.13632608,40454.0,40452.0,0.07851]
[1610147441911,0.13632608,40454.0,40453.0,0.01434947]
[1610147444213,0.2885,40489.0,40453.0,0.01434947]
[1610147444513,0.2885,40489.0,40460.0,3.7807]
[1610147445013,0.13632608,40467.0,40462.0,0.13632608]
[1610147445515,0.13632608,40467.0,40463.0,0.00022775]
[1610147445915,0.13632608,40467.0,40463.0,0.08365]
[1610147446115,0.13632608,40467.0,40464.0,0.00022775]
[1610147446316,0.13632608,40467.0,40464.0,0.0004555]
[1610147446720,0.13632608,40467.0,40465.0,0.00022775]
[1610147450423,0.13632608,40467.0,40464.0,0.01457381]
[1610147450723,0.13632608,40467.0,40466.0,0.00022775]
[1610147450923,0.13632608,40467.0,40464.0,0.00022775]
[1610147450924,0.13632608,40467.0,40465.0,0.00022775]
[1610147451122,0.13632608,40467.0,40466.0,0.00022775]
[1610147451724,0.13632608,40467.0,40464.0,0.01434675]
[1610147451725,0.13632608,40467.0,40464.0,0.0145745]
[1610147451924,0.13632608,40467.0,40466.0,0.00022775]
[1610147452127,0.13632608,40467.0,40465.0,0.00022775]
[1610147452424,0.13632608,40467.0,40466.0,0.00022775]
[1610147453024,0.13632608,40467.0,40465.0,0.00022775]
[1610147453227,0.13632608,40467.0,40466.0,0.00022775]
[1610147453828,0.13632608,40467.0,40465.0,0.00022775]
[1610147454027,0.13632608,40467.0,40466.0,0.00022775]
[1610147454528,0.13632608,40467.0,40465.0,0.00022775]
[1610147454829,0.13632608,40467.0,40466.0,0.00022778]
[1610147455327,0.13632608,40467.0,40465.0,0.00022778]
[1610147455528,0.13632608,40467.0,40466.0,0.00022778]
[1610147456127,0.13632608,40467.0,40465.0,0.00022778]
[1610147456328,0.13632608,40467.0,40466.0,0.43202778]
[1610147457629,0.13632608,40467.0,40466.0,0.44614953]
[1610147467743,0.13632608,40467.0,40466.0,0.01434953]
[1610147468144,0.13632608,40467.0,40465.0,0.00022778]
[1610147468446,0.13632608,40467.0,40466.0,0.00022778]
[1610147469045,0.13632608,40467.0,40465.0,0.0002278]
[1610147469246,0.13632608,40467.0,40466.0,0.0002278]
[1610147469746,0.13632608,40467.0,40465.0,0.0002278]
[1610147470146,0.13632608,40467.0,40466.0,0.0002278]
[1610147470548,0.13632608,40467.0,40466.0,4.0353]
[1610147470848,0.13632608,40467.0,40466.0,4.0355278]
[1610147471547,0.13632608,40467.0,40466.0,4.04965033]
[1610147471747,0.07701,40477.0,40466.0,4.04965033]
[1610147471947,0.01458112,40491.0,40466.0,4.04965033]
[1610147472149,0.01460235,40497.0,40467.0,0.01434612]
[1610147472550,0.2709,40499.0,40467.0,0.01434612]
[1610147473150,0.2709,40499.0,40483.0,0.13632608]
[1610147473351,0.25,40500.0,40483.0,0.13632608]
[1610147473553,0.25,40500.0,40495.0,4.0069]
[1610147473951,0.25,40500.0,40496.0,0.00022768]
[1610147474456,0.25,40500.0,40499.0,2.8367]
[1610147474956,0.25,40500.0,40499.0,4.35079641]
[1610147475157,0.25,40500.0,40499.0,4.48735002]
[1610147476056,0.25,40500.0,40499.0,2.98735002]
[1610147476558,0.25,40500.0,40499.0,2.97325361]
[1610147476758,0.25,40500.0,40499.0,4.47325361]
[1610147479465,0.25,40500.0,40499.0,4.47302608]
[1610147479663,0.25,40500.0,40499.0,2.97302608]
[1610147482367,0.25,40500.0,40499.0,4.47302608]
[1610147482867,0.25,40500.0,40499.0,2.97302608]
[1610147487176,0.25,40500.0,40499.0,4.47302608]
[1610147488176,0.25,40500.0,40499.0,2.97302608]
[1610147489679,0.25,40500.0,40499.0,4.47302608]
[1610147493285,0.25,40500.0,40499.0,2.97302608]
[1610147493585,0.25,40500.0,40499.0,4.47302608]
[1610147494788,0.25,40500.0,40499.0,2.97302608]
[1610147505698,0.25,40500.0,40499.0,2.97325536]
[1610147507001,0.25,40500.0,40499.0,4.47325536]
[1610147509004,0.2768,40571.0,40499.0,4.48788147]
[1610147509316,0.08263,40561.0,40499.0,1.68580146]
[1610147509504,0.08263,40561.0,40544.0,3.2091]
[1610147509704,0.08263,40561.0,40544.0,3.2999]
[1610147510303,0.2768,40571.0,40544.0,3.2999]
[1610147511206,0.2768,40571.0,40570.0,0.13632608]
[1610147511407,0.2768,40571.0,40570.0,0.58562608]
[1610147513207,0.41312608,40571.0,40556.0,0.07954]
[1610147513407,0.41312608,40571.0,40556.0,4.20594]
[1610147513908,0.50967608,40571.0,40556.0,0.07954]
[1610147514308,0.50967608,40571.0,40494.0,2.58699035]
[1610147514512,0.50967608,40571.0,40512.0,2.8851]
[1610147514709,0.50967608,40571.0,40512.0,3.01183]
[1610147515212,0.13632608,40535.0,40529.0,0.13632608]
[1610147515410,0.13632608,40535.0,40530.0,0.5855]
[1610147519212,0.13632608,40535.0,40534.0,0.13632608]
[1610147520112,0.12663,40553.0,40534.0,0.13632608]
[1610147520517,0.37335,40571.0,40537.0,2.8184]
[1610147520715,0.37335,40571.0,40537.0,2.91271]
[1610147521215,0.13632608,40558.0,40552.0,0.13632608]
[1610147521615,0.13632608,40558.0,40555.0,4.1173]
[1610147523017,0.37335,40571.0,40552.0,0.13632608]
[1610147523317,0.37335,40571.0,40570.0,0.13632608]
[1610147523318,0.2768,40571.0,40570.0,0.13632608]
[1610147524516,0.13632608,40578.0,40570.0,0.13632608]
[1610147527317,0.13632608,40578.0,40577.0,0.13632608]
[1610147527518,0.13632608,40578.0,40577.0,0.58302608]
[1610147529325,0.13632608,40583.0,40577.0,0.58302608]
[1610147531422,0.13632608,40583.0,40582.0,0.13632608]
[1610147531826,0.2884,40599.0,40582.0,0.22030608]
[1610147532029,0.2884,40599.0,40591.0,3.2761]
[1610147533124,0.2884,40599.0,40582.0,0.22030608]
[1610147533325,0.13632608,40598.0,40588.0,0.13632608]
[1610147535429,0.13632608,40589.0,40588.0,0.13632608]
[1610147537529,0.13632608,40589.0,40588.0,0.71342608]
[1610147537732,0.2884,40599.0,40588.0,0.71342608]
[1610147537931,0.2884,40599.0,40588.0,0.13632608]
[1610147538131,0.2884,40599.0,40593.0,3.1779]
[1610147539233,0.2884,40599.0,40592.0,0.0978]
[1610147539435,0.2884,40599.0,40598.0,0.13632608]
[1610147540835,0.2884,40599.0,40594.0,3.9083]
[1610147541335,0.13632608,40595.0,40594.0,3.9083]
[1610147543038,0.13632608,40595.0,40592.0,0.0978]
[1610147543338,0.13632608,40583.0,40576.0,0.13632608]
[1610147543541,0.13632608,40583.0,40575.0,3.8712]
[1610147544340,0.13632608,40583.0,40529.0,0.2917]
[1610147544539,0.13632608,40583.0,40559.0,3.9987]
[1610147544741,0.13632608,40583.0,40529.0,0.2917]
[1610147544941,0.13632608,40583.0,40530.0,0.00022903]
[1610147545143,0.13632608,40583.0,40547.0,3.0519]
[1610147545341,0.13632608,40583.0,40547.0,3.13162]
[1610147545542,0.13632608,40573.0,40560.0,0.13632608]
[1610147547444,0.13632608,40566.0,40565.0,0.13632608]
[1610147547844,0.13632608,40566.0,40565.0,3.34792608]
[1610147552946,0.13632608,40566.0,40565.0,3.42621608]
[1610147556155,0.13632608,40566.0,40565.0,3.28989]
[1610147556356,0.13632608,40566.0,40565.0,0.07829]
[1610147557854,0.13632608,40566.0,40557.0,0.13632608]
[1610147558055,0.13632608,40566.0,40565.0,3.3537]
[1610147558655,0.11702,40595.0,40565.0,3.3537]
[1610147558856,0.01481156,40612.0,40579.0,4.0936]
[1610147559056,0.1569,40613.0,40579.0,4.17742]
[1610147559556,0.1569,40613.0,40592.0,0.13632608]
[1610147559858,0.1569,40613.0,40594.0,0.545]
[1610147561562,0.13632608,40595.0,40594.0,0.545]
[1610147563263,0.13632608,40595.0,40594.0,0.54523257]
[1610147566265,0.13632608,40595.0,40594.0,0.545]
[1610147566465,0.13632608,40595.0,40594.0,0.54523256]
[1610147566665,0.13632608,40595.0,40594.0,0.00023256]
[1610147567270,0.13632608,40595.0,40585.0,0.00023256]
[1610147567468,0.13632608,40595.0,40594.0,0.00023256]
[1610147567670,3.21064,40605.0,40594.0,0.00023256]
[1610147567966,3.21064,40605.0,40581.0,3.2311]
[1610147567967,3.21064,40605.0,40595.0,0.00023256]
[1610147568368,3.21064,40605.0,40587.0,0.00023256]
[1610147568567,3.21064,40605.0,40596.0,0.00023256]
[1610147568768,3.21064,40605.0,40582.0,0.01588829]
[1610147569266,3.21064,40605.0,40597.0,0.00023256]
[1610147569466,3.21064,40605.0,40583.0,0.00023256]
[1610147569668,3.21064,40605.0,40598.0,0.00023256]
[1610147569968,3.21064,40605.0,40584.0,0.13655864]
[1610147570169,3.21064,40605.0,40585.0,0.01588758]
[1610147570968,3.21064,40605.0,40585.0,0.00023256]
[1610147571168,3.21064,40605.0,40586.0,0.00023256]
[1610147571670,0.13632608,40587.0,40582.0,0.01588835]
[1610147571968,0.13632608,40587.0,40586.0,0.00023256]
[1610147572169,0.13632608,40587.0,40583.0,0.00023256]
[1610147572569,0.13632608,40587.0,40586.0,0.00023256]
[1610147572772,0.13632608,40587.0,40584.0,0.00023256]
[1610147572969,0.13632608,40587.0,40586.0,0.00023256]
[1610147573273,0.13632608,40587.0,40582.0,0.01565579]
[1610147573274,0.13632608,40587.0,40585.0,0.00023256]
[1610147573671,0.13632608,40587.0,40586.0,0.00023256]
[1610147574071,0.13632608,40587.0,40582.0,0.01565579]
[1610147574072,0.13632608,40587.0,40582.0,0.00023256]
[1610147574272,0.13632608,40587.0,40586.0,0.00023258]
[1610147574673,0.13632608,40587.0,40583.0,0.00023258]
[1610147574872,0.25187608,40587.0,40586.0,0.00023258]
[1610147575174,0.25187608,40587.0,40584.0,0.0002326]
[1610147575476,0.25187608,40587.0,40586.0,0.0002326]
[1610147575673,0.25187608,40587.0,40585.0,0.0002326]
[1610147575872,0.25187608,40587.0,40586.0,0.0002326]
[1610147576473,0.25187608,40587.0,40578.0,3.7987]
[1610147576474,0.25187608,40587.0,40579.0,0.01589319]
[1610147576672,0.25187608,40587.0,40586.0,0.0002326]
[1610147577075,0.25187608,40587.0,40580.0,0.0002326]
[1610147577275,0.25187608,40587.0,40586.0,0.0002326]
[1610147577475,0.25187608,40587.0,40581.0,0.0002326]
[1610147577674,0.25187608,40587.0,40586.0,0.0002326]
[1610147578077,0.25187608,40587.0,40582.0,0.0002326]
[1610147578274,0.25187608,40587.0,40586.0,0.0002326]
[1610147578476,0.25187608,40587.0,40583.0,0.0002326]
[1610147578874,0.25187608,40587.0,40586.0,0.0002326]
[1610147579174,0.25187608,40587.0,40579.0,0.01589319]
[1610147579376,0.25187608,40587.0,40586.0,0.0002326]
[1610147579676,0.25187608,40587.0,40580.0,0.0002326]
[1610147579877,0.25187608,40587.0,40579.0,0.01566059]
[1610147580277,0.25187608,40587.0,40579.0,0.01589319]
[1610147581582,0.13632608,40580.0,40579.0,0.01589319]
[1610147590493,0.13632608,40580.0,40579.0,0.0002326]
[1610147590693,0.13632608,40580.0,40572.0,0.01589076]
[1610147590892,0.13632608,40580.0,40579.0,0.01589058]
[1610147591194,0.13632608,40580.0,40573.0,0.01589272]
[1610147591395,0.13632608,40580.0,40579.0,0.0002326]
[1610147591592,0.13632608,40580.0,40574.0,0.01589395]
[1610147591891,0.13632608,40580.0,40579.0,0.0002326]
[1610147592190,0.13632608,40580.0,40572.0,0.01566105]
[1610147592191,0.13632608,40580.0,40575.0,0.0002326]
[1610147592491,0.13632608,40580.0,40579.0,0.0002326]
[1610147592691,0.13632608,40580.0,40576.0,0.0002326]
[1610147592893,0.13632608,40580.0,40579.0,0.0002326]
[1610147593795,0.13632608,40580.0,40578.0,0.0002326]
[1610147593995,2.9359,40579.0,40572.0,0.01589367]
[1610147594197,2.9359,40579.0,40560.0,3.6752]
[1610147594594,2.9359,40579.0,40573.0,0.00023265]